bitfinex/quotes_SOLUSD_20250210
["timestamp","ask_amount","ask_price","bid_price","bid_amount"]
[1739170022442,0.03,203.2,203.19,8.44113985]
[1739170022630,0.03,203.2,203.19,8.56662985]
[1739170024834,0.03,203.2,203.19,12.50382985]
[1739170025944,0.03,203.2,203.19,8.56662985]
[1739170026146,0.03,203.2,203.19,8.44113985]
[1739170027656,0.03,203.2,203.19,12.37833985]
[1739170028048,0.03,203.2,203.19,12.50382985]
[1739170028243,0.03,203.2,203.19,8.56662985]
[1739170029547,0.03,203.2,203.19,12.50382985]
[1739170035259,0.03,203.2,203.19,25.91567838]
[1739170036061,0.03,203.2,203.19,59.42823778]
[1739170036663,0.03,203.2,203.19,25.91567838]
[1739170037963,0.03,203.22,203.21,33.53733853]
[1739170038160,0.03,203.22,203.21,42.65335588]
[1739170040072,0.03,203.22,203.21,46.59015588]
[1739170044179,0.03,203.22,203.21,32.44042985]
[1739170044765,0.03,203.22,203.21,45.85227838]
[1739170044970,0.03,203.22,203.21,46.59020405]
[1739170047473,0.03,203.22,203.21,46.71569405]
[1739170047677,0.03,203.24,203.22,13.66282853]
[1739170047874,0.03,203.24,203.23,10.24140581]
[1739170048275,0.03,203.24,203.23,23.77874434]
[1739170048469,0.03,203.26,203.25,21.12549]
[1739170048671,0.03,203.26,203.25,29.50362985]
[1739170049260,0.03,203.26,203.23,9.11591581]
[1739170049261,1.6073,203.26,203.23,9.11591581]
[1739170049573,1.6073,203.26,203.2,8.37813985]
[1739170049770,1.6073,203.26,203.24,0.12549]
[1739170050081,0.03,203.26,203.25,8.50362985]
[1739170058885,0.03,203.27,203.26,0.12549]
[1739170059066,0.03,203.27,203.26,22.04096838]
[1739170060361,0.03,203.27,203.26,25.97676838]
[1739170060582,0.03,203.31,203.29,33.53733853]
[1739170060786,0.03,203.31,203.3,56.16561089]
[1739170060986,0.03,203.31,203.3,22.65305149]
[1739170061184,0.03,203.31,203.3,22.77854149]
[1739170061382,0.03,203.32,203.31,22.04096838]
[1739170062272,0.03,203.32,203.31,21.91547838]
[1739170062477,0.03,203.32,203.31,25.85027838]
[1739170063970,0.03,203.32,203.31,26.71332431]
[1739170065478,0.03,203.32,203.31,26.58783431]
[1739170065695,0.03,203.32,203.31,25.85027838]
[1739170066772,0.03,203.32,203.31,21.91547838]
[1739170067702,0.03,203.32,203.31,25.85027838]
[1739170068389,0.03,203.32,203.31,8.50362985]
[1739170069592,0.03,203.32,203.31,9.24124315]
[1739170069794,0.03,203.32,203.31,26.58789168]
[1739170070096,0.03,203.32,203.31,25.85027838]
[1739170070274,0.03,203.32,203.31,8.50362985]
[1739170071392,0.03,203.32,203.27,8.37813985]
[1739170071577,0.03,203.32,203.29,28.37813985]
[1739170071779,0.03,203.32,203.3,8.50362985]
[1739170072377,0.03,203.32,203.3,0.12549]
[1739170073785,0.03,203.32,203.29,20.0]
[1739170075097,0.03,203.32,203.27,8.50362985]
[1739170075495,0.03,203.32,203.29,0.12549]
[1739170076096,0.03,203.32,203.26,32.31393985]
[1739170076306,8.40813985,203.32,203.26,20.0]
[1739170077203,8.40813985,203.32,203.27,0.12549]
[1739170077395,3.9348,203.31,203.27,0.12549]
[1739170078192,3.9348,203.31,203.29,0.063]
[1739170079103,8.37813985,203.31,203.29,0.063]
[1739170079799,8.37813985,203.3,203.29,0.063]
[1739170080907,8.37813985,203.31,203.29,0.063]
[1739170081113,12.31313985,203.3,203.29,0.063]
[1739170087209,8.37813985,203.25,203.24,0.063]
[1739170087714,8.37813985,203.26,203.24,0.063]
[1739170089238,3.9359,203.26,203.24,0.063]
[1739170089409,12.31373985,203.28,203.24,0.063]
[1739170089604,8.37813985,203.27,203.24,0.063]
[1739170089811,8.37813985,203.25,203.24,0.063]
[1739170090630,8.50362985,203.25,203.24,0.063]
[1739170091443,12.43962985,203.25,203.24,0.063]
[1739170092013,35.0357,203.27,203.24,0.063]
[1739170093536,5.574,203.29,203.24,0.063]
[1739170093746,8.37813985,203.28,203.24,0.063]
[1739170094443,8.50362985,203.27,203.24,0.063]
[1739170095238,12.31393985,203.26,203.24,0.063]
[1739170096244,3.9358,203.26,203.24,0.063]
[1739170098949,12.31393985,203.26,203.24,0.063]
[1739170102247,3.9358,203.26,203.24,0.063]
[1739170102842,8.37813985,203.27,203.24,0.063]
[1739170103046,3.9356,203.27,203.24,0.063]
[1739170103430,8.50362985,203.28,203.24,0.063]
[1739170103630,17.84223985,203.29,203.24,0.063]
[1739170104233,0.03,203.29,203.25,8.37813985]
[1739170104553,0.03,203.29,203.26,8.37813985]
[1739170105650,0.03,203.29,203.25,8.37813985]
[1739170106558,0.03,203.29,203.24,0.063]
[1739170106727,8.37813985,203.28,203.24,0.063]
[1739170107344,0.03,203.29,203.24,0.063]
[1739170107552,0.03,203.29,203.24,8.44113985]
[1739170108054,0.03,203.29,203.25,8.37813985]
[1739170109238,0.03,203.29,203.24,0.063]
[1739170109648,0.15549,203.29,203.24,0.063]
[1739170109960,8.37813985,203.26,203.24,0.063]
[1739170110325,8.37813985,203.25,203.24,0.063]
[1739170110549,0.03,203.29,203.24,0.063]
[1739170110550,8.37813985,203.26,203.24,0.063]
[1739170111753,8.37813985,203.25,203.24,0.063]
[1739170112040,22.78998838,203.25,203.24,0.063]
[1739170112243,8.37813985,203.25,203.24,0.063]
[1739170114228,8.37813985,203.27,203.24,0.063]
[1739170114429,124.41373985,203.28,203.24,0.063]
[1739170116025,93.31373985,203.28,203.24,0.063]
[1739170116350,8.37813985,203.28,203.24,0.063]
[1739170116542,0.03,203.29,203.24,0.063]
[1739170116736,12.34333985,203.29,203.24,0.063]
[1739170116954,8.37813985,203.28,203.24,0.063]
[1739170118370,8.37813985,203.27,203.24,0.063]
[1739170120568,12.31383985,203.27,203.24,0.063]
[1739170121151,8.37813985,203.26,203.24,0.063]
[1739170121469,12.31383985,203.27,203.24,0.063]
[1739170122668,8.37813985,203.26,203.24,0.063]
[1739170122846,8.37813985,203.25,203.24,0.063]
[1739170124069,9.92783985,203.25,203.24,0.063]
[1739170124741,13.86383985,203.25,203.24,0.063]
[1739170130582,13.86383985,203.25,203.19,0.063]
[1739170130752,8.37813985,203.2,203.19,0.063]
[1739170132480,12.31513985,203.2,203.19,0.063]
[1739170137573,8.37813985,203.2,203.19,0.063]
[1739170137781,51.14113771,203.24,203.19,0.063]
[1739170137957,47.20493771,203.24,203.19,0.063]
[1739170138157,38.82679786,203.24,203.19,0.063]
[1739170138470,7.72679786,203.24,203.19,0.063]
[1739170139975,7.72679786,203.24,203.2,0.12549]
[1739170140278,23.78929901,203.25,203.2,0.12549]
[1739170140279,8.37813985,203.25,203.2,0.12549]
[1739170140492,8.37813985,203.26,203.2,0.12549]
[1739170140775,8.37813985,203.28,203.2,30.02067838]
[1739170143472,8.40813985,203.29,203.22,0.12549]
[1739170143972,8.37813985,203.28,203.22,0.12549]
[1739170144181,8.37813985,203.27,203.22,0.12549]
[1739170145979,8.37813985,203.27,203.22,4.06199]
[1739170146276,0.03,203.29,203.22,0.12549]
[1739170146277,8.37813985,203.28,203.22,0.12549]
[1739170146577,8.37813985,203.24,203.2,8.1052]
[1739170146874,3.9652,203.29,203.2,8.1052]
[1739170146875,8.37813985,203.25,203.2,8.1052]
[1739170148779,8.37813985,203.25,203.2,6.5274]
[1739170148979,12.31413985,203.25,203.19,0.18849]
[1739170149358,12.31413985,203.25,203.19,0.063]
[1739170149359,8.37813985,203.23,203.19,0.063]
[1739170149559,8.37813985,203.22,203.2,0.063]
[1739170150480,8.37813985,203.21,203.2,0.063]
[1739170151878,12.31493985,203.21,203.2,0.063]
[1739170153285,3.9368,203.21,203.2,0.063]
[1739170157278,8.37813985,203.21,203.2,0.063]
[1739170158886,12.21813985,203.21,203.2,0.063]
[1739170159676,16.15493985,203.21,203.2,0.063]
[1739170160283,49.66749925,203.21,203.2,0.063]
[1739170160479,20.0,203.18,203.15,0.063]
[1739170160782,8.37813985,203.16,203.15,0.063]
[1739170161771,12.31583985,203.16,203.15,0.063]
[1739170162584,26.72768838,203.16,203.15,0.063]
[1739170162791,21.0,203.14,203.13,0.063]
[1739170163089,42.78998838,203.14,203.13,0.063]
[1739170163983,46.72808838,203.14,203.13,0.063]
[1739170165088,45.72808838,203.14,203.13,0.063]
[1739170165980,32.31623985,203.14,203.13,0.063]
[1739170170788,12.31623985,203.14,203.13,0.063]
[1739170172590,124.41623985,203.14,203.13,0.063]
[1739170173295,120.47813985,203.14,203.13,0.063]
[1739170173508,112.1,203.14,203.13,0.063]
[1739170174592,3.9379,203.16,203.13,0.063]
[1739170174593,89.37813985,203.16,203.13,0.063]
[1739170174898,81.0,203.16,203.13,0.063]
[1739170175078,0.03,203.15,203.13,0.063]
[1739170181106,0.03,203.15,203.13,8.44113985]
[1739170181687,0.03,203.15,203.14,8.50362985]
[1739170181888,0.03,203.15,203.14,21.91547838]
[1739170183376,8.40813985,203.24,203.14,21.91547838]
[1739170183377,0.03,203.24,203.18,20.12549]
[1739170183576,0.03,203.24,203.22,8.37813985]
[1739170183998,0.03,203.24,203.23,8.37813985]
[1739170185775,0.03,203.24,203.22,8.37813985]
[1739170185978,0.03,203.24,203.2,8.50362985]
[1739170186797,0.03,203.24,203.2,0.12549]
[1739170187099,0.03,203.24,203.18,8.37813985]
[1739170189482,0.03,203.24,203.19,8.37813985]
[1739170190094,8.37813985,203.23,203.16,8.37813985]
[1739170190295,8.37813985,203.22,203.14,8.37813985]
[1739170191503,3.9368,203.21,203.14,8.37813985]
[1739170191907,12.31493985,203.21,203.14,8.37813985]
[1739170192483,3.9368,203.21,203.14,8.37813985]
[1739170192700,3.9368,203.21,203.15,8.37813985]
[1739170192915,3.9368,203.21,203.14,8.37813985]
[1739170193218,12.31493985,203.21,203.14,8.37813985]
[1739170193405,8.37813985,203.2,203.13,8.44113985]
[1739170194605,8.37813985,203.19,203.13,0.063]
[1739170194796,8.37813985,203.18,203.13,0.063]
[1739170194996,8.37813985,203.19,203.13,0.063]
[1739170195308,0.03,203.24,203.15,0.12549]
[1739170195493,0.03,203.24,203.23,8.37813985]
[1739170195698,0.03,203.24,203.21,8.37813985]
[1739170196201,0.03,203.24,203.19,8.37813985]
[1739170197509,0.03,203.24,203.17,8.37813985]
[1739170199592,0.03,203.24,203.17,12.31563985]
[1739170200419,0.03,203.24,203.19,8.37813985]
[1739170202910,0.03,203.24,203.19,12.31523985]
[1739170205524,0.03,203.24,203.19,20.0]
[1739170205699,0.03,203.24,203.21,8.37813985]
[1739170206217,0.03,203.24,203.22,8.37813985]
[1739170206726,0.03,203.24,203.18,8.37813985]
[1739170207299,0.03,203.24,203.19,8.37813985]
[1739170207628,0.03,203.24,203.2,8.37813985]
[1739170208423,0.03,203.24,203.21,8.37813985]
[1739170208830,0.03,203.24,203.23,8.37813985]
[1739170209610,0.03,203.24,203.23,12.31453985]
[1739170213824,0.03,203.24,203.23,12.44002985]
[1739170214217,0.03,203.24,203.23,25.85187838]
[1739170214415,0.03,203.24,203.23,26.58979379]
[1739170215321,0.03,203.28,203.23,36.43079379]
[1739170215533,0.03,203.28,203.27,28.50362985]
[1739170215905,0.03,203.28,203.27,41.91547838]
[1739170216713,0.03,203.28,203.27,45.85107838]
[1739170218436,0.03,203.28,203.27,25.85107838]
[1739170218826,0.03,203.36,203.31,20.0]
[1739170219014,0.03,203.36,203.31,41.78998838]
[1739170219347,0.03,203.36,203.31,42.65304824]
[1739170220429,0.03,203.36,203.31,46.58784824]
[1739170220932,0.03,203.36,203.31,45.85027838]
[1739170223031,0.03,203.36,203.35,20.0]
[1739170223333,0.03,203.36,203.35,41.91547838]
[1739170225232,0.03,203.36,203.35,45.84957838]
[1739170225716,0.03,203.36,203.35,33.19309695]
[1739170226534,0.03,203.36,203.35,37.12719695]
[1739170227329,0.03,203.36,203.35,50.53904548]
[1739170232639,0.03,203.36,203.35,33.19309695]
[1739170234348,0.03,203.36,203.35,51.27659894]
[1739170237023,0.03,203.36,203.35,50.53904548]
[1739170243827,0.03,203.36,203.35,51.27648379]
[1739170244028,0.03,203.36,203.35,50.53904548]
[1739170245355,0.03,203.36,203.35,33.19309695]
[1739170245530,0.03,203.36,203.35,0.12549]
[1739170246032,0.03,203.36,203.34,3.9341]
[1739170246350,0.03,203.36,203.32,8.43061156]
[1739170246531,0.03,203.36,203.32,0.063]
[1739170247538,3.9639,203.36,203.32,0.063]
[1739170247739,12.33151156,203.36,203.32,0.063]
[1739170249250,8.36761156,203.34,203.32,0.063]
[1739170249432,8.36761156,203.33,203.32,0.063]
[1739170250442,12.30201156,203.33,203.32,0.063]
[1739170250647,8.36761156,203.34,203.32,0.063]
[1739170250853,16.14181156,203.35,203.32,0.063]
[1739170253859,8.36761156,203.34,203.32,0.063]
[1739170255734,12.30191156,203.34,203.32,0.063]
[1739170256851,3.9343,203.34,203.32,0.063]
[1739170257860,35.064,203.36,203.32,0.063]
[1739170258759,0.03,203.36,203.32,8.43061156]
[1739170260940,8.39761156,203.36,203.32,0.063]
[1739170261336,8.36761156,203.35,203.32,0.063]
[1739170261544,8.36761156,203.34,203.32,0.063]
[1739170261744,0.03,203.36,203.32,0.063]
[1739170268478,0.03,203.36,203.32,8.43061156]
[1739170269260,0.03,203.36,203.32,0.063]
[1739170271856,0.03,203.36,203.33,8.36761156]
[1739170272059,0.03,203.36,203.35,8.36761156]
[1739170272260,0.03,203.36,203.35,8.49310156]
[1739170273382,0.03,203.36,203.33,8.36761156]
[1739170273676,0.03,203.36,203.32,8.43061156]
[1739170273882,0.03,203.36,203.32,0.063]
[1739170274661,0.03,203.36,203.35,21.90495009]
[1739170275556,0.03,203.36,203.35,22.64232235]
[1739170275751,0.03,203.36,203.35,22.76781235]
[1739170276251,0.03,203.36,203.35,26.70191235]
[1739170276954,0.03,203.36,203.35,26.57642235]
[1739170277254,0.03,203.36,203.35,25.83905009]
[1739170278184,0.03,203.36,203.35,21.90495009]
[1739170280989,0.03,203.36,203.35,8.49310156]
[1739170281770,0.03,203.36,203.35,25.83905009]
[1739170285360,0.03,203.36,203.35,25.96454009]
[1739170287780,0.0001,203.36,203.35,25.96454009]
[1739170287977,0.03,203.41,203.4,0.12549]
[1739170288170,0.03,203.41,203.4,22.64213619]
[1739170290387,0.03,203.41,203.4,26.57523619]
[1739170290690,0.03,203.43,203.42,0.12549]
[1739170290979,0.03,203.43,203.42,22.76749561]
[1739170291979,0.03,203.43,203.42,26.70019561]
[1739170295177,0.03,203.43,203.42,26.57470561]
[1739170299468,0.03,203.43,203.42,25.83765009]
[1739170302487,0.03,203.43,203.42,0.12549]
[1739170302689,0.03,203.43,203.41,8.43061156]
[1739170302690,0.03,203.43,203.41,0.063]
[1739170306884,8.39761156,203.43,203.41,0.063]
[1739170307401,8.36761156,203.42,203.41,0.063]
[1739170308402,8.39761156,203.43,203.41,0.063]
[1739170308601,3.9327,203.42,203.41,0.063]
[1739170309401,0.03,203.43,203.41,0.063]
[1739170309600,3.9626,203.43,203.41,0.063]
[1739170310601,7.7826,203.43,203.41,0.063]
[1739170312604,16.15021156,203.43,203.41,0.063]
[1739170312811,3.85,203.43,203.41,0.063]
[1739170313110,0.03,203.43,203.41,0.063]
[1739170314307,8.36761156,203.42,203.41,0.063]
[1739170314901,12.30031156,203.42,203.41,0.063]
[1739170315806,3.9327,203.42,203.41,0.063]
[1739170316212,3.9327,203.42,203.35,8.36761156]
[1739170317913,3.9327,203.42,203.36,8.36761156]
[1739170318112,3.9327,203.42,203.41,0.063]
[1739170319107,0.03,203.43,203.41,0.063]
[1739170320703,8.39761156,203.43,203.41,0.063]
[1739170321023,3.9327,203.42,203.41,0.063]
[1739170321228,8.39761156,203.43,203.42,0.12549]
[1739170321229,0.03,203.43,203.42,0.12549]
[1739170321520,0.03,203.43,203.42,21.90495009]
[1739170322917,0.03,203.43,203.42,25.83765009]
[1739170327725,0.03,203.43,203.42,21.90495009]
[1739170327905,0.03,203.43,203.42,8.49310156]
[1739170328106,0.03,203.43,203.41,8.43061156]
[1739170328307,0.03,203.43,203.41,0.063]
[1739170334235,0.03,203.43,203.42,8.36761156]
[1739170334409,0.03,203.43,203.42,21.90495009]
[1739170336428,0.03,203.43,203.42,26.5748728]
[1739170338836,0.03,203.43,203.42,26.7003628]
[1739170340217,0.03,203.45,203.44,0.25098]
[1739170340414,0.03,203.45,203.44,22.76740938]
[1739170340928,0.03,203.45,203.44,22.64191938]
[1739170341728,0.03,203.45,203.44,42.64191938]
[1739170341913,0.03,203.45,203.44,22.64191938]
[1739170342842,0.03,203.45,203.44,26.57421938]
[1739170346653,0.03,203.49,203.48,20.12549]
[1739170346840,0.03,203.49,203.48,41.90495009]
[1739170347528,0.03,203.49,203.48,8.36761156]
[1739170347735,9.89791156,203.49,203.41,0.063]
[1739170347935,8.36761156,203.47,203.41,0.063]
[1739170348951,8.36761156,203.47,203.41,0.18849]
[1739170349328,8.36761156,203.47,203.41,0.063]
[1739170349541,12.18761156,203.47,203.41,0.063]
[1739170349740,13.06886111,203.46,203.41,0.063]
[1739170349941,3.9321,203.45,203.41,0.063]
[1739170354532,3.82,203.47,203.41,13.13186111]
[1739170354735,3.9319,203.46,203.41,13.13186111]
[1739170355551,35.0317,203.48,203.43,13.06886111]
[1739170355944,35.0317,203.48,203.42,13.19435111]
[1739170356136,48.10056111,203.48,203.42,0.12549]
[1739170356343,13.06886111,203.47,203.41,0.063]
[1739170356551,13.06886111,203.46,203.41,0.063]
[1739170357335,3.9321,203.45,203.41,0.063]
[1739170360653,13.06886111,203.45,203.41,0.063]
[1739170362157,17.00116111,203.44,203.41,0.063]
[1739170362344,14.69876111,203.42,203.41,0.063]
[1739170362750,1.6299,203.42,203.41,0.063]
[1739170363268,3.9321,203.46,203.41,13.13186111]
[1739170363446,3.9321,203.46,203.41,0.063]
[1739170366065,14.69876111,203.47,203.41,13.13186111]
[1739170366271,0.03,203.46,203.42,13.06886111]
[1739170367761,0.03,203.46,203.41,0.18849]
[1739170372156,8.39205964,203.46,203.41,0.063]
[1739170372468,3.9321,203.45,203.41,0.063]
[1739170379176,8.36205964,203.42,203.41,0.063]
[1739170380648,12.29475964,203.42,203.41,0.063]
[1739170380848,3.9327,203.42,203.41,0.063]
[1739170381144,8.36205964,203.43,203.41,0.063]
[1739170382081,8.36205964,203.45,203.41,0.063]
[1739170382249,12.29415964,203.45,203.41,0.063]
[1739170388591,8.36205964,203.43,203.41,0.063]
[1739170390679,31.1,203.44,203.41,0.063]
[1739170390680,12.29475964,203.42,203.41,0.063]
[1739170394399,13.42024964,203.42,203.41,0.063]
[1739170394787,94.42024964,203.42,203.41,0.063]
[1739170395483,102.1470475,203.42,203.41,0.063]
[1739170395665,8.36205964,203.36,203.32,0.063]
[1739170396062,8.36205964,203.37,203.32,0.063]
[1739170396770,12.29575964,203.37,203.32,0.063]
[1739170398084,8.36205964,203.35,203.32,0.063]
[1739170399403,12.29615964,203.35,203.32,0.063]
[1739170400589,3.9341,203.35,203.32,0.063]
[1739170401612,8.36205964,203.36,203.32,0.063]
[1739170401979,12.29595964,203.36,203.32,0.063]
[1739170402787,8.36205964,203.37,203.32,0.063]
[1739170403707,43.52114964,203.38,203.32,0.063]
[1739170404089,47.34114964,203.38,203.32,0.063]
[1739170404713,8.36205964,203.37,203.32,0.063]
[1739170404912,8.36205964,203.36,203.32,0.063]
[1739170405085,8.36205964,203.35,203.32,0.063]
[1739170405621,8.36205964,203.34,203.32,0.063]
[1739170406416,8.36205964,203.33,203.32,0.063]
[1739170406794,12.42194964,203.33,203.32,0.063]
[1739170406997,8.36205964,203.33,203.32,0.063]
[1739170407315,8.36205964,203.35,203.32,0.063]
[1739170410102,8.36205964,203.37,203.32,0.063]
[1739170410427,7.72679786,203.39,203.33,8.36205964]
[1739170410602,11.54679786,203.39,203.33,8.36205964]
[1739170411231,19.9088575,203.39,203.33,0.12549]
[1739170411531,7.72679786,203.39,203.33,8.48754964]
[1739170411698,7.72679786,203.39,203.36,8.36205964]
[1739170412104,0.03,203.41,203.36,8.36205964]
[1739170413224,0.03,203.41,203.38,8.36205964]
[1739170414739,0.03,203.41,203.37,0.12549]
[1739170415905,0.03,203.41,203.36,7.9669]
[1739170416107,0.03,203.41,203.34,8.36205964]
[1739170416516,8.39205964,203.41,203.35,0.12549]
[1739170417028,0.03,203.41,203.35,28.36205964]
[1739170417211,0.03,203.41,203.36,8.48754964]
[1739170418040,0.03,203.41,203.36,0.12549]
[1739170418626,0.03,203.41,203.36,8.48754964]
[1739170419208,0.03,203.41,203.38,8.36205964]
[1739170419633,0.03,203.41,203.39,0.12549]
[1739170420321,0.03,203.41,203.38,0.12549]
[1739170423245,0.03,203.41,203.38,8.48754964]
[1739170423828,0.03,203.41,203.38,12.42104964]
[1739170424033,0.03,203.41,203.39,8.36205964]
[1739170426052,0.03,203.41,203.4,0.12549]
[1739170426347,0.03,203.41,203.4,4.05859]
[1739170429445,0.03,203.41,203.4,0.12549]
[1739170449160,0.03,203.41,203.4,4.05859]
[1739170449675,0.03,203.41,203.4,4.12159]
[1739170450460,0.03,203.41,203.4,0.18849]
[1739170453265,0.03,203.41,203.4,4.12159]
[1739170453441,0.03,203.41,203.4,25.89549817]
[1739170453644,0.03,203.41,203.4,59.46922673]
[1739170454142,0.03,203.41,203.4,26.02098817]
[1739170454567,0.03,203.41,203.4,59.46922673]
[1739170454867,0.03,203.41,203.4,26.02098817]
[1739170456164,0.03,203.41,203.4,59.46922673]
[1739170457971,0.03,203.41,203.4,60.68489902]
[1739170458474,0.03,203.41,203.4,59.46922673]
[1739170460445,0.03,203.41,203.4,26.02098817]
[1739170460868,0.03,203.41,203.4,25.89549817]
[1739170461555,0.03,203.41,203.4,21.96239817]
[1739170464378,0.03,203.41,203.4,8.55054964]
[1739170465876,0.03,203.41,203.4,12.48364964]
[1739170468481,0.03,203.41,203.4,8.55054964]
[1739170471683,0.03,203.41,203.4,12.48364964]
[1739170473092,0.03,203.41,203.4,8.55054964]
[1739170473885,0.03,203.41,203.4,26.63282785]
[1739170474197,0.03,203.41,203.4,60.20655641]
[1739170476689,0.03,203.45,203.44,20.12549]
[1739170476986,0.03,203.45,203.44,42.76191236]
[1739170477375,0.03,203.45,203.44,43.76191236]
[1739170478686,0.03,203.45,203.44,47.69421236]
[1739170480187,0.03,203.45,203.44,46.69421236]
[1739170480387,0.03,203.45,203.44,46.56872236]
[1739170481103,0.03,203.45,203.44,46.69421236]
[1739170482795,0.03,203.46,203.45,13.66282853]
[1739170482993,0.03,203.46,203.45,22.02488817]
[1739170483385,0.03,203.46,203.45,42.02488817]
[1739170483591,0.03,203.46,203.45,22.02488817]
[1739170487098,0.03,203.53,203.51,1.12549]
[1739170487409,0.03,203.57,203.55,20.0]
[1739170487704,0.03,203.57,203.56,21.89939817]
[1739170488101,0.03,203.57,203.56,8.48754964]
[1739170488600,0.03,203.57,203.56,21.89939817]
[1739170494311,0.03,203.57,203.56,25.82939817]
[1739170495302,0.03,203.57,203.56,21.89939817]
[1739170497314,0.03,203.57,203.56,25.82939817]
[1739170497611,0.03,203.57,203.56,8.48754964]
[1739170498494,0.03,203.57,203.56,8.36205964]
[1739170498685,0.03,203.57,203.55,8.36205964]
[1739170498897,0.03,203.57,203.56,8.36205964]
[1739170499504,0.03,203.57,203.56,25.82939817]
[1739170502605,0.03,203.62,203.56,25.95488817]
[1739170502797,0.03,203.62,203.61,21.89939817]
[1739170503415,0.03,203.62,203.61,25.82839817]
[1739170508392,0.03,203.62,203.61,21.89939817]
[1739170508595,0.03,203.62,203.61,8.48754964]
[1739170509113,0.03,203.62,203.61,8.36205964]
[1739170510300,0.03,203.62,203.6,8.36205964]
[1739170511518,0.03,203.62,203.59,20.0]
[1739170511819,0.03,203.62,203.57,8.36205964]
[1739170512024,1.5497,203.61,203.57,8.36205964]
[1739170514324,1.5497,203.61,203.56,0.063]
[1739170514325,9.91175964,203.61,203.56,0.063]
[1739170514520,13.84085964,203.61,203.56,0.063]
[1739170516828,8.36205964,203.6,203.56,0.063]
[1739170517035,3.9294,203.59,203.56,0.063]
[1739170518132,9.91175964,203.57,203.56,0.063]
[1739170519135,13.84155964,203.57,203.56,0.063]
[1739170519729,17.64155964,203.57,203.56,0.063]
[1739170521237,13.71175964,203.57,203.56,0.063]
[1739170521442,1.5497,203.57,203.56,0.063]
[1739170521624,9.91175964,203.57,203.56,0.063]
[1739170522537,13.84155964,203.57,203.56,0.063]
[1739170524141,9.91175964,203.57,203.56,0.063]
[1739170525034,13.84155964,203.57,203.56,0.063]
[1739170530039,13.84155964,203.57,203.52,0.063]
[1739170530241,8.36205964,203.53,203.52,0.063]
[1739170531356,12.29265964,203.53,203.52,0.063]
[1739170533857,8.36205964,203.53,203.52,0.063]
[1739170534656,8.36205964,203.54,203.52,0.063]
[1739170535343,12.16205964,203.54,203.52,0.063]
[1739170535944,16.09255964,203.54,203.52,0.063]
[1739170537353,8.36205964,203.53,203.52,0.063]
[1739170538262,89.36205964,203.53,203.52,0.063]
[1739170539461,93.29265964,203.53,203.52,0.063]
[1739170541763,125.39265964,203.53,203.52,0.063]
[1739170541961,147.99030817,203.53,203.52,0.063]
[1739170543057,148.11579817,203.53,203.52,0.063]
[1739170543265,1.0,203.51,203.4,0.063]
[1739170543475,8.36205964,203.44,203.4,0.063]
[1739170543961,8.36205964,203.45,203.4,0.063]
[1739170544549,8.36205964,203.44,203.4,20.063]
[1739170545367,3.9325,203.44,203.4,0.063]
[1739170545860,8.36205964,203.45,203.4,0.063]
[1739170546159,12.29425964,203.45,203.4,0.063]
[1739170547863,8.36205964,203.41,203.4,0.063]
[1739170553770,8.36205964,203.43,203.4,0.063]
[1739170554067,112.1,203.45,203.42,8.36205964]
[1739170554278,13.82205964,203.51,203.44,8.36205964]